bitfinex-derivatives/quotes_BTCF0:USTF0_20240815
["timestamp","ask_amount","ask_price","bid_price","bid_amount"]
[1723742400266,0.084456,59199.0,59198.0,0.3608]
[1723742400468,0.00015568,59201.0,59200.0,0.084455]
[1723742400970,0.08460868,59201.0,59200.0,0.084455]
[1723742401178,0.168912,59199.0,59187.0,0.084473]
[1723742401390,0.3608,59194.0,59186.0,0.3608]
[1723742401666,0.001,59199.0,59186.0,0.3608]
[1723742401860,0.084462,59195.0,59191.0,0.3608]
[1723742402064,0.001,59199.0,59191.0,0.3608]
[1723742402261,0.001,59199.0,59191.0,0.5356]
[1723742402458,0.001,59199.0,59198.0,0.084458]
[1723742402765,0.001,59199.0,59198.0,0.445258]
[1723742402966,0.3608,59215.0,59198.0,0.445258]
[1723742402967,0.4292,59223.0,59199.0,0.50676]
[1723742403267,0.4292,59223.0,59208.0,0.5356]
[1723742403268,0.3608,59223.0,59208.0,0.5356]
[1723742403569,0.445231,59217.0,59198.0,0.00474131]
[1723742403866,0.3608,59207.0,59201.0,0.0668]
[1723742404074,0.3608,59207.0,59202.0,0.084452]
[1723742404294,0.3608,59207.0,59205.0,0.084446]
[1723742404459,0.3608,59207.0,59198.0,0.00025342]
[1723742404656,0.3608,59207.0,59185.0,0.00460082]
[1723742404657,0.3608,59200.0,59185.0,0.00460082]
[1723742404861,0.3608,59200.0,59186.0,0.0668]
[1723742405068,0.3608,59200.0,59199.0,0.084456]
[1723742405271,0.084439,59211.0,59207.0,0.084445]
[1723742405456,0.3608,59215.0,59200.0,0.0642]
[1723742405774,0.445234,59215.0,59206.0,0.1748]
[1723742406270,0.3618,59207.0,59206.0,0.084446]
[1723742406477,0.002,59207.0,59206.0,0.084446]
[1723742406768,0.002,59207.0,59206.0,0.991166]
[1723742406970,0.00025342,59213.0,59212.0,0.084438]
[1723742407271,0.00025342,59213.0,59212.0,0.259238]
[1723742407463,0.00025342,59213.0,59212.0,1.165878]
[1723742407776,0.3608,59223.0,59222.0,0.084424]
[1723742407958,0.3608,59223.0,59218.0,0.084429]
[1723742408156,0.3608,59223.0,59215.0,0.084433]
[1723742408367,0.001,59213.0,59212.0,0.084438]
[1723742409471,0.002,59213.0,59212.0,0.085438]
[1723742409663,0.00025342,59218.0,59212.0,0.90764]
[1723742409972,0.3608,59231.0,59230.0,0.084412]
[1723742410172,0.3608,59231.0,59225.0,0.084419]
[1723742410364,0.3608,59231.0,59224.0,0.3608]
[1723742410676,0.445212,59231.0,59224.0,0.3608]
[1723742410871,0.445212,59231.0,59230.0,0.084412]
[1723742411170,0.084414,59229.0,59226.0,0.084417]
[1723742411475,0.084414,59229.0,59227.0,0.084416]
[1723742411669,0.084414,59229.0,59228.0,0.084415]
[1723742411969,0.3848,59231.0,59222.0,0.00025342]
[1723742412162,0.3848,59231.0,59223.0,0.1748]
[1723742412361,0.3848,59231.0,59230.0,0.084412]
[1723742413062,0.024,59231.0,59230.0,0.084412]
[1723742413270,0.012,59231.0,59230.0,0.084412]
[1723742413476,0.018,59231.0,59230.0,0.084412]
[1723742413772,0.018,59231.0,59230.0,0.590892]
[1723742413976,0.006,59231.0,59230.0,1.075304]
[1723742414165,0.00025342,59233.0,59232.0,0.084409]
[1723742415181,0.00025342,59233.0,59232.0,0.675298]
[1723742416371,0.3608,59248.0,59232.0,1.351689]
[1723742416584,0.3608,59248.0,59247.0,0.084388]
[1723742416870,0.3608,59254.0,59253.0,0.084379]
[1723742417074,0.445178,59254.0,59253.0,0.084379]
[1723742417265,0.3608,59267.0,59253.0,0.50628]
[1723742417467,0.3608,59267.0,59251.0,0.3608]
[1723742417468,0.084364,59264.0,59263.0,0.084364]
[1723742417974,0.3608,59267.0,59253.0,0.2187]
[1723742418174,0.014,59254.0,59253.0,0.303079]
[1723742418369,0.014,59254.0,59253.0,0.084379]
[1723742418567,0.00025317,59259.0,59258.0,0.084372]
[1723742419375,0.084385,59249.0,59248.0,0.00025317]
[1723742419577,0.445185,59249.0,59248.0,0.00025317]
[1723742419883,0.084378,59254.0,59248.0,0.00025317]
[1723742419884,0.445179,59254.0,59248.0,0.00025317]
[1723742420185,0.3608,59249.0,59248.0,0.08463917]
[1723742420471,0.446178,59254.0,59253.0,0.007]
[1723742421069,0.3608,59254.0,59253.0,0.084379]
[1723742421979,0.084385,59249.0,59248.0,0.00925317]
[1723742422274,0.084379,59253.0,59248.0,0.00925317]
[1723742422474,0.3618,59254.0,59253.0,0.084379]
[1723742422674,0.08438,59253.0,59248.0,0.00925317]
[1723742422972,0.3608,59249.0,59248.0,0.00525317]
[1723742423177,0.445185,59249.0,59248.0,0.00525317]
[1723742423779,0.445185,59249.0,59248.0,0.00025317]
[1723742424578,0.452185,59249.0,59248.0,0.00125317]
[1723742424977,0.460185,59249.0,59248.0,0.00225317]
[1723742426166,0.453185,59249.0,59248.0,0.00125317]
[1723742426369,1.93752557,59249.0,59219.0,0.00012235]
[1723742426570,1.93752557,59249.0,59223.0,0.084422]
[1723742426571,0.084421,59224.0,59223.0,0.084422]
[1723742426785,0.3608,59228.0,59220.0,0.084426]
[1723742427174,0.3608,59228.0,59219.0,0.00012235]
[1723742427175,0.084426,59220.0,59219.0,0.00012235]
[1723742427477,0.084421,59224.0,59219.0,0.00012235]
[1723742427684,0.00025317,59225.0,59219.0,0.00012235]
[1723742427877,0.084425,59221.0,59219.0,0.08455035]
[1723742428378,0.00025317,59225.0,59219.0,0.00012235]
[1723742428379,0.084426,59220.0,59219.0,0.00012235]
[1723742428582,0.091426,59220.0,59219.0,0.00112235]
[1723742429176,0.084426,59220.0,59219.0,0.00112235]
[1723742429380,0.168852,59220.0,59219.0,0.00112235]
[1723742429572,0.084434,59215.0,59214.0,0.00025317]
[1723742430575,0.08458982,59215.0,59214.0,0.00025317]
[1723742430978,0.08558982,59215.0,59214.0,0.00025317]
[1723742431581,0.08658982,59215.0,59214.0,0.00025317]
[1723742433274,0.084444,59208.0,59207.0,0.3608]
[1723742433483,0.3608,59208.0,59199.0,0.084456]
[1723742433886,0.00215582,59215.0,59198.0,0.5795]
[1723742434090,0.084436,59213.0,59204.0,0.3608]
[1723742434280,0.00215582,59215.0,59204.0,0.3608]
[1723742434481,0.084444,59208.0,59205.0,0.084447]
[1723742434784,0.085444,59208.0,59204.0,0.3608]
[1723742435090,0.085444,59208.0,59204.0,0.084448]
[1723742435091,0.084448,59205.0,59204.0,0.084448]
[1723742435290,0.084448,59205.0,59203.0,0.00025317]
[1723742435291,0.084449,59204.0,59203.0,0.00025317]
[1723742436279,0.084449,59204.0,59203.0,0.08470417]
[1723742436680,0.001,59205.0,59204.0,0.084449]
[1723742436979,0.001,59213.0,59207.0,0.084444]
[1723742436980,0.084442,59209.0,59207.0,0.084444]
[1723742437181,0.001,59204.0,59203.0,0.09670417]
[1723742437389,0.001,59204.0,59203.0,0.45750417]
[1723742438589,0.001,59204.0,59203.0,0.46250417]
[1723742438590,0.002,59204.0,59203.0,0.46250417]
[1723742439178,0.002,59204.0,59203.0,0.45050417]
[1723742439380,0.001,59204.0,59203.0,0.45050417]
[1723742439888,0.17005382,59204.0,59203.0,0.00525317]
[1723742440083,0.17005382,59204.0,59194.0,0.084463]
[1723742440084,0.084462,59196.0,59187.0,0.3205]
[1723742440288,0.3608,59193.0,59184.0,0.00517899]
[1723742440594,0.3608,59201.0,59196.0,0.03502799]
[1723742441596,0.084452,59202.0,59197.0,0.3608]
[1723742441784,0.00140921,59204.0,59203.0,0.084451]
[1723742442090,0.00140921,59204.0,59203.0,0.445251]
[1723742442986,0.00140921,59204.0,59203.0,0.455251]
[1723742443682,0.08585821,59204.0,59203.0,0.094451]
[1723742444283,0.00140921,59204.0,59203.0,0.455251]
[1723742444898,0.00240921,59204.0,59203.0,0.455251]
[1723742445202,0.084447,59206.0,59203.0,0.3708]
[1723742445988,0.084441,59210.0,59203.0,0.3708]
[1723742446186,0.3608,59225.0,59209.0,0.3608]
[1723742446386,0.084422,59223.0,59215.0,0.3608]
[1723742446589,0.3608,59227.0,59220.0,0.3608]
[1723742446899,0.00025339,59221.0,59220.0,0.620426]
[1723742447300,0.168856,59219.0,59218.0,0.00025339]
[1723742447894,0.228656,59219.0,59218.0,0.00025339]
[1723742448592,0.228656,59219.0,59218.0,0.03670185]
[1723742448799,0.237656,59219.0,59218.0,0.03670185]
[1723742449392,0.244656,59219.0,59218.0,0.03770185]
[1723742450901,0.16889,59207.0,59206.0,0.03106804]
[1723742451202,0.89049,59207.0,59206.0,0.03106804]
[1723742451398,1.79721,59207.0,59206.0,0.03106804]
[1723742451895,1.39721,59207.0,59206.0,0.03106804]
[1723742452101,0.89049,59207.0,59206.0,0.03106804]
[1723742452299,1.40721,59207.0,59206.0,0.03106804]
[1723742452503,1.39721,59207.0,59206.0,0.03206804]
[1723742452705,1.40721,59207.0,59206.0,0.03406804]
[1723742453002,1.39721,59207.0,59206.0,0.03406804]
[1723742453191,1.39721,59207.0,59206.0,0.003]
[1723742453192,1.40249893,59207.0,59206.0,0.003]
[1723742453391,1.90694393,59207.0,59206.0,0.003]
[1723742453789,1.90694393,59207.0,59195.0,0.03106492]
[1723742453790,0.084461,59196.0,59195.0,0.03106492]
[1723742453989,0.084461,59196.0,59195.0,0.06169537]
[1723742453990,0.445261,59196.0,59195.0,0.06169537]
[1723742455197,0.446261,59196.0,59195.0,0.06169537]
[1723742455599,0.447261,59196.0,59195.0,0.06769537]
[1723742456705,0.447261,59196.0,59195.0,0.006]
[1723742457408,0.69920213,59196.0,59195.0,0.03677821]
[1723742457600,0.447261,59196.0,59195.0,0.03677821]
[1723742457899,0.3628,59196.0,59195.0,0.12124021]
[1723742458904,0.447261,59196.0,59195.0,0.12124021]
[1723742459804,0.3628,59196.0,59195.0,0.12124021]
[1723742460204,0.002,59196.0,59195.0,1.07330221]
[1723742460500,0.00025339,59201.0,59200.0,0.11493051]
[1723742460702,0.00025339,59201.0,59200.0,0.62749654]
[1723742461092,0.00025339,59201.0,59200.0,0.56018551]
[1723742461290,0.00025339,59201.0,59200.0,0.47573051]
[1723742461691,0.00225339,59201.0,59200.0,0.47773051]
[1723742462404,0.00125339,59201.0,59200.0,0.47573051]
[1723742462600,0.00225339,59201.0,59200.0,0.47773051]
[1723742462800,0.00125339,59201.0,59200.0,0.47773051]
[1723742463105,0.00225339,59201.0,59200.0,0.47773051]
[1723742464406,0.3608,59207.0,59206.0,0.084446]
[1723742465199,0.084451,59203.0,59202.0,0.084451]
[1723742465909,0.084453,59201.0,59200.0,0.03143551]
[1723742466104,0.445253,59201.0,59200.0,0.03047551]
[1723742466507,0.529706,59201.0,59200.0,0.03047551]
[1723742466701,0.529706,59201.0,59200.0,0.02622212]
[1723742467411,0.549706,59201.0,59200.0,0.02622212]
[1723742467815,0.445253,59201.0,59200.0,0.02622212]
[1723742468207,0.445253,59201.0,59200.0,0.03522212]
[1723742468208,0.447253,59201.0,59200.0,0.03522212]
[1723742468709,0.002,59201.0,59200.0,0.11967712]
[1723742469218,0.002,59201.0,59200.0,0.20413212]
[1723742469399,0.002,59201.0,59200.0,0.11967712]
[1723742469601,0.002,59201.0,59200.0,0.20413212]
[1723742469915,1e-08,59208.0,59207.0,0.253335]
[1723742470099,1e-08,59208.0,59207.0,1.002098]
[1723742470302,1e-08,59208.0,59207.0,1.82464613]
[1723742470704,1e-08,59208.0,59207.0,1.696015]
[1723742470911,1e-08,59208.0,59207.0,2.07557955]
[1723742471109,0.3608,59229.0,59227.0,0.084415]
[1723742471415,0.084415,59228.0,59227.0,0.084415]
[1723742471822,0.3608,59229.0,59224.0,0.084421]
[1723742472705,0.084419,59226.0,59225.0,0.084419]
[1723742473914,0.3888,59229.0,59228.0,0.084415]
[1723742474309,0.3748,59229.0,59228.0,0.084415]
[1723742474507,0.3608,59229.0,59228.0,0.084415]
[1723742474709,0.3748,59229.0,59228.0,0.084415]
[1723742474908,0.3748,59229.0,59228.0,0.12084791]
[1723742475421,0.014,59229.0,59228.0,0.12084791]
[1723742476323,0.028,59229.0,59228.0,0.12184791]
[1723742476822,0.028,59229.0,59228.0,0.15616387]
[1723742477006,0.014,59229.0,59228.0,0.15516387]
[1723742477206,0.028,59229.0,59228.0,0.15616387]
[1723742477606,0.112414,59229.0,59228.0,0.07174887]
[1723742478724,0.098414,59229.0,59228.0,0.07174887]
[1723742479021,0.112414,59229.0,59228.0,0.07174887]
[1723742480513,0.028,59229.0,59228.0,0.15616387]
[1723742485421,0.028,59229.0,59228.0,0.085415]
[1723742485815,0.028,59229.0,59228.0,0.16983]
[1723742487033,0.028,59229.0,59228.0,0.20600215]
[1723742487527,0.028,59229.0,59228.0,0.12158715]
[1723742488229,0.3888,59229.0,59228.0,0.12158715]
[1723742488927,0.3888,59229.0,59228.0,0.085415]
[1723742489622,0.473214,59229.0,59228.0,0.001]
[1723742489933,0.557628,59229.0,59228.0,0.0329028]
[1723742490230,0.557628,59229.0,59228.0,0.06542271]
[1723742490231,0.473214,59229.0,59228.0,0.06542271]
[1723742491021,0.557628,59229.0,59228.0,0.06542271]
[1723742491426,1.16424474,59229.0,59228.0,0.06316933]
[1723742491634,1.56424474,59229.0,59228.0,0.04172378]
[1723742492033,1.78610614,59229.0,59228.0,0.01087378]
[1723742492532,1.78610614,59229.0,59228.0,0.04270105]
[1723742492830,1.69169214,59229.0,59228.0,0.04270105]
[1723742493029,1.70169214,59229.0,59228.0,0.04270105]
[1723742493239,1.78610614,59229.0,59228.0,0.04270105]
[1723742493624,1.77610614,59229.0,59228.0,0.04270105]
[1723742493820,1.78610614,59229.0,59228.0,0.04270105]
[1723742494034,1.37610614,59229.0,59228.0,0.04270105]
[1723742494226,1.77610614,59229.0,59228.0,0.04270105]
[1723742494432,1.78610614,59229.0,59228.0,0.04270105]
[1723742494639,1.38610614,59229.0,59228.0,0.04270105]
[1723742494835,0.56331074,59229.0,59228.0,0.04270105]
[1723742495633,0.47889674,59229.0,59228.0,0.04270105]
[1723742495930,0.47889674,59229.0,59228.0,0.12711605]
[1723742495931,0.39448274,59229.0,59228.0,0.12711605]
[1723742496132,0.39448274,59229.0,59228.0,0.04270105]
[1723742496133,0.47889674,59229.0,59228.0,0.04270105]
[1723742496735,0.56331074,59229.0,59228.0,0.04270105]
[1723742497134,1.55424474,59229.0,59228.0,0.04270105]
[1723742497330,1.55424474,59229.0,59228.0,0.03635935]
[1723742497331,1.79610614,59229.0,59228.0,0.03635935]
[1723742498529,1.69169214,59229.0,59228.0,0.03635935]
[1723742498727,1.29169214,59229.0,59228.0,0.03635935]
[1723742498925,0.78517214,59229.0,59228.0,0.03635935]
[1723742499532,0.56331074,59229.0,59228.0,0.03635935]
[1723742501429,0.473214,59229.0,59228.0,0.12077435]
[1723742501829,0.473214,59229.0,59228.0,0.03635935]
[1723742503227,0.557628,59229.0,59228.0,0.03635935]
[1723742503637,0.473214,59229.0,59228.0,0.03635935]
[1723742505037,1.379734,59229.0,59228.0,0.03635935]
[1723742505237,0.473214,59229.0,59228.0,0.03635935]
[1723742506028,0.473214,59229.0,59228.0,0.12077435]
[1723742506233,0.3888,59229.0,59228.0,0.12077435]
[1723742506629,0.3888,59229.0,59228.0,0.17112766]
[1723742507333,0.473214,59229.0,59228.0,0.17112766]
[1723742508141,0.473214,59229.0,59228.0,0.08671266]
[1723742508341,0.473214,59229.0,59228.0,0.03635935]
[1723742509247,0.473214,59229.0,59228.0,0.08671266]
[1723742509649,0.473214,59229.0,59228.0,0.17112766]
[1723742510546,0.473214,59229.0,59228.0,0.12077435]
[1723742511241,0.473214,59229.0,59228.0,0.17130491]
[1723742512244,0.473214,59229.0,59228.0,0.08688991]
[1723742513451,0.112414,59229.0,59228.0,0.03635935]
[1723742515242,0.028,59229.0,59228.0,0.12077435]
[1723742515648,0.112414,59229.0,59228.0,0.12077435]
[1723742516443,0.028,59229.0,59228.0,0.12077435]
[1723742516646,0.028,59229.0,59228.0,0.17132444]
[1723742516858,0.028,59229.0,59228.0,0.12077435]
[1723742517446,0.028,59229.0,59228.0,0.17132444]
[1723742517644,0.028,59229.0,59228.0,0.12077435]
[1723742518040,0.028,59229.0,59228.0,0.25573944]
[1723742518244,0.028,59229.0,59228.0,0.20518935]
[1723742518835,0.028,59229.0,59228.0,0.28960435]
[1723742519945,0.028,59229.0,59228.0,0.20518935]
[1723742520938,0.028,59229.0,59228.0,0.25458935]
[1723742521851,0.028,59229.0,59228.0,0.40629144]
[1723742522046,0.3608,59242.0,59228.0,0.40629144]
[1723742522047,0.3608,59248.0,59247.0,0.084388]
[1723742522245,0.3608,59248.0,59247.0,0.12078698]
[1723742522442,0.36644087,59248.0,59247.0,0.1713428]
[1723742522644,0.36644087,59248.0,59247.0,0.20517498]
[1723742522843,0.3608,59248.0,59247.0,0.12078698]
[1723742523252,0.3748,59248.0,59247.0,0.15600815]
[1723742523451,0.3848,59248.0,59247.0,0.15600815]
[1723742523658,0.3848,59248.0,59247.0,0.22341591]
[1723742524143,0.3848,59248.0,59247.0,0.15600815]
[1723742524552,0.3748,59248.0,59247.0,0.15700815]
[1723742525647,0.3608,59248.0,59247.0,0.085388]
[1723742525846,0.3608,59248.0,59247.0,0.597748]
[1723742526041,0.00025317,59253.0,59252.0,0.084381]
[1723742527742,0.01025317,59253.0,59252.0,0.085381]
[1723742529054,0.01025317,59253.0,59252.0,0.13575511]
[1723742529249,0.01025317,59253.0,59252.0,0.085381]
[1723742530149,0.05156017,59253.0,59252.0,0.085381]
[1723742530543,0.21679788,59253.0,59252.0,0.085381]
[1723742531552,0.21679788,59253.0,59252.0,0.169762]
[1723742531754,0.10333569,59253.0,59252.0,0.169762]
[1723742532053,0.15864957,59253.0,59252.0,0.169762]
[1723742532357,0.05156017,59253.0,59252.0,0.169762]
[1723742533860,0.05156017,59253.0,59252.0,0.085381]
[1723742536861,0.05156017,59253.0,59252.0,0.169762]
[1723742537058,0.4099,59268.0,59262.0,0.084366]
[1723742537250,0.36656568,59263.0,59262.0,0.084366]
[1723742538457,0.36656568,59263.0,59262.0,0.085366]
[1723742538458,0.37656568,59263.0,59262.0,0.085366]
[1723742539059,0.3708,59263.0,59262.0,0.169732]
[1723742539373,0.01,59263.0,59262.0,0.705732]
[1723742539960,0.00025317,59268.0,59267.0,0.084359]
[1723742541164,0.00025317,59268.0,59267.0,0.085359]
[1723742541465,0.3608,59274.0,59273.0,0.084351]
[1723742542066,0.3608,59285.0,59278.0,0.084344]
[1723742542067,0.3608,59279.0,59278.0,0.084344]
[1723742542567,0.445142,59279.0,59278.0,0.082344]
[1723742543558,0.008,59279.0,59278.0,0.167688]
[1723742544270,0.00025317,59284.0,59283.0,0.084337]
[1723742544471,0.3608,59291.0,59290.0,0.084327]
[1723742545156,0.3608,59298.0,59290.0,0.084327]
[1723742545462,0.3608,59298.0,59287.0,0.2274]
[1723742545463,0.3608,59298.0,59297.0,0.084317]
[1723742545668,0.36684364,59298.0,59297.0,0.084317]
[1723742546061,0.3608,59298.0,59297.0,0.084317]
[1723742547367,0.00016365,59300.0,59299.0,0.084314]
[1723742547766,0.00016365,59300.0,59297.0,0.002]
[1723742548072,0.00016365,59300.0,59299.0,0.084314]
[1723742549561,0.00016365,59300.0,59299.0,0.085314]
[1723742549769,0.00016365,59300.0,59299.0,0.086314]
[1723742550367,0.44527565,59300.0,59299.0,0.086314]
[1723742551065,0.084299,59310.0,59299.0,0.538]
[1723742551264,0.3608,59313.0,59312.0,0.084295]
[1723742551265,0.445095,59313.0,59312.0,0.084295]
[1723742551461,0.08429,59316.0,59306.0,0.1752]
[1723742551869,0.08429,59316.0,59315.0,0.084291]
[1723742552266,0.09299327,59316.0,59315.0,0.084291]
[1723742552569,0.09299327,59316.0,59307.0,0.084302]
[1723742552570,0.084286,59319.0,59318.0,0.084287]
[1723742552771,0.17727904,59319.0,59318.0,0.084287]
[1723742553262,0.15343432,59319.0,59318.0,0.07585831]
[1723742553660,0.15343432,59319.0,59315.0,0.001]
[1723742553865,0.15343432,59319.0,59310.0,0.00025296]
[1723742553866,0.168594,59311.0,59310.0,0.00025296]
[1723742554064,0.62238704,59311.0,59310.0,0.00025296]
[1723742554278,0.084312,59300.0,59299.0,0.001]
[1723742554465,0.59854632,59300.0,59299.0,0.001]
[1723742554777,0.68285832,59300.0,59299.0,0.001]
[1723742554967,0.68285832,59300.0,59289.0,0.084328]
[1723742554968,0.084325,59292.0,59289.0,0.084328]
[1723742555167,0.56623432,59300.0,59290.0,0.084327]
[1723742555168,0.15343432,59291.0,59290.0,0.084327]
[1723742555566,0.09299304,59291.0,59290.0,0.084327]
[1723742556070,0.09299304,59291.0,59285.0,0.00025296]
[1723742556277,0.529464,59286.0,59285.0,0.00025296]
[1723742556472,0.68289832,59286.0,59285.0,0.00025296]
[1723742556662,0.68289832,59286.0,59269.0,0.05415182]
[1723742556663,0.08435,59274.0,59270.0,0.084355]
[1723742556866,0.17740086,59273.0,59270.0,0.084355]
[1723742557070,0.09304986,59272.0,59269.0,0.00015182]
[1723742557274,0.15349275,59271.0,59269.0,0.00015182]
[1723742557476,0.15349275,59270.0,59269.0,0.08450882]
[1723742557677,0.09305147,59270.0,59269.0,0.08450882]
[1723742558065,0.15349275,59270.0,59269.0,0.08450882]
[1723742559370,0.15349275,59270.0,59269.0,0.03468794]
[1723742559571,0.15349275,59270.0,59269.0,0.03768794]
[1723742559878,0.15349275,59270.0,59269.0,0.04168794]
[1723742560068,0.15349275,59270.0,59269.0,0.03968794]
[1723742560264,0.08460196,59275.0,59273.0,0.08435]
[1723742560477,0.00015182,59274.0,59273.0,0.08435]
[1723742562174,0.00015182,59274.0,59273.0,0.25955]
[1723742562377,0.00025296,59275.0,59273.0,0.25955]
[1723742562378,0.00212001,59286.0,59273.0,0.936]
[1723742562580,0.3608,59292.0,59291.0,0.084325]
[1723742562776,0.3608,59299.0,59298.0,0.084315]
[1723742564068,0.3608,59299.0,59293.0,0.00025296]
[1723742564482,0.084321,59295.0,59293.0,0.08457496]
[1723742565176,0.084321,59294.0,59293.0,0.08857496]
[1723742565570,0.445121,59294.0,59293.0,0.00425296]
[1723742565878,0.529442,59294.0,59293.0,0.00025296]
[1723742567071,0.084339,59281.0,59277.0,0.3205]
[1723742567375,0.084344,59279.0,59277.0,0.084345]
[1723742567583,0.084344,59279.0,59278.0,0.084344]
[1723742568078,0.3608,59283.0,59271.0,0.2362]
[1723742568376,0.084348,59275.0,59274.0,0.084349]
[1723742568770,0.084349,59274.0,59273.0,0.00025296]
[1723742569169,0.084349,59274.0,59273.0,0.08460396]
[1723742570385,0.00610612,59294.0,59289.0,0.084327]
[1723742570569,0.08432,59295.0,59294.0,0.08432]
[1723742570876,0.0518,59312.0,59293.0,0.5795]
[1723742570877,0.084321,59294.0,59293.0,0.00088]
[1723742571072,0.3608,59303.0,59286.0,0.2187]
[1723742571073,0.084312,59301.0,59290.0,0.3608]
[1723742571283,0.3608,59303.0,59290.0,0.3608]
[1723742571470,0.445108,59303.0,59290.0,0.3608]
[1723742571667,0.3608,59303.0,59302.0,0.08431]
[1723742572075,0.00025223,59308.0,59295.0,0.3608]
[1723742572268,0.00025223,59308.0,59306.0,0.084303]
[1723742572485,0.00025223,59308.0,59307.0,0.084302]
[1723742573774,0.00025223,59308.0,59307.0,0.085302]
[1723742575180,0.04152218,59308.0,59307.0,0.085302]
[1723742575588,0.04152218,59308.0,59307.0,0.086302]
[1723742575883,0.09325126,59308.0,59307.0,0.086302]
[1723742576094,0.04152218,59308.0,59307.0,0.086302]
[1723742576794,0.04152218,59308.0,59307.0,0.254906]
[1723742576982,0.04152218,59308.0,59307.0,1.160746]
[1723742577375,0.11578144,59308.0,59307.0,1.160746]
[1723742577582,0.13209875,59312.0,59311.0,0.168594]
[1723742577789,0.13209875,59312.0,59311.0,0.613691]
[1723742578083,0.65064366,59324.0,59311.0,1.2666]
[1723742578289,0.1320372,59321.0,59320.0,0.168568]
[1723742578487,0.14854053,59324.0,59321.0,0.50572]
[1723742578682,0.18979625,59324.0,59323.0,0.08428]
[1723742578875,0.04125572,59324.0,59323.0,0.08428]
[1723742579081,0.04125572,59324.0,59323.0,0.99]
[1723742579590,0.17313088,59324.0,59323.0,0.99]
[1723742580184,0.04125572,59324.0,59323.0,1.07428]
[1723742580389,0.11988408,59330.0,59324.0,0.589958]
[1723742580593,0.3608,59344.0,59333.0,0.2187]
[1723742580594,0.11988408,59338.0,59333.0,0.2187]
[1723742580888,0.3608,59344.0,59337.0,0.3608]
[1723742580889,0.084257,59340.0,59337.0,0.3608]
[1723742581087,0.084257,59340.0,59339.0,0.084257]
[1723742582283,0.084257,59340.0,59339.0,0.085257]
[1723742582678,0.3608,59344.0,59341.0,0.084254]
[1723742583196,0.084256,59340.0,59339.0,0.001]
[1723742583389,0.084256,59340.0,59339.0,0.085257]
[1723742583693,0.084256,59340.0,59339.0,0.086257]
[1723742584398,0.084256,59340.0,59339.0,0.085257]
[1723742584594,0.3608,59344.0,59342.0,0.084253]
[1723742584784,0.3608,59344.0,59339.0,0.001]
[1723742584981,0.084256,59340.0,59339.0,0.002]
[1723742585186,0.084264,59334.0,59333.0,0.00025296]
[1723742585985,0.0507,59343.0,59336.0,0.08426]
[1723742586585,0.0507,59343.0,59333.0,0.00025296]
[1723742586792,0.084264,59334.0,59333.0,0.00025296]
[1723742587590,0.084264,59334.0,59333.0,0.00125296]
[1723742587792,0.084264,59334.0,59333.0,0.08551896]
[1723742588193,0.3608,59338.0,59336.0,0.084261]
[1723742588396,0.08426,59337.0,59336.0,0.084261]
[1723742588594,0.3608,59338.0,59337.0,0.08426]
[1723742589098,0.084252,59343.0,59342.0,0.084253]
[1723742590195,0.06041191,59343.0,59337.0,0.33250617]
[1723742590398,0.15335943,59342.0,59341.0,0.084254]
[1723742590605,0.15335943,59342.0,59336.0,0.001]
[1723742590790,0.08426,59337.0,59336.0,0.001]
[1723742591106,0.084263,59335.0,59333.0,0.08451896]
[1723742591394,0.28582343,59334.0,59333.0,0.06892355]
[1723742591602,1.12969775,59334.0,59315.0,0.3608]
[1723742591913,0.08429,59316.0,59315.0,0.3608]
[1723742592094,0.51415943,59316.0,59307.0,0.3608]
[1723742592288,0.084296,59312.0,59311.0,0.084296]
[1723742592495,0.15335943,59312.0,59311.0,0.084296]
[1723742593001,0.22248251,59312.0,59311.0,0.084296]
[1723742594097,0.12953499,59312.0,59311.0,0.084296]
[1723742594396,0.22252483,59312.0,59311.0,0.096296]
[1723742594602,0.30681983,59312.0,59311.0,0.012]
[1723742595198,0.23769675,59312.0,59311.0,0.012]
[1723742596295,0.15340175,59312.0,59307.0,0.31234435]
[1723742596502,0.29829585,59309.0,59308.0,0.0843]
[1723742596796,0.15340175,59309.0,59306.0,0.00025296]
[1723742596999,0.084302,59307.0,59306.0,0.00025296]
[1723742598085,0.445102,59307.0,59306.0,0.00025296]
[1723742598294,0.084298,59311.0,59306.0,0.00025296]
[1723742598497,0.3608,59312.0,59311.0,0.084297]
[1723742598693,0.0482,59316.0,59315.0,0.084291]
[1723742599000,0.36288001,59319.0,59316.0,0.08429]
[1723742599195,0.405473,59328.0,59316.0,0.08429]
[1723742599196,0.0471,59324.0,59316.0,0.08429]
[1723742599412,0.084281,59323.0,59316.0,0.44509]
[1723742599697,0.0471,59324.0,59316.0,0.52938]
[1723742600393,0.084274,59327.0,59316.0,1.35085]
[1723742600587,0.0491,59336.0,59329.0,0.084271]
[1723742600790,0.0491,59336.0,59326.0,0.3608]
[1723742600791,0.084265,59334.0,59326.0,0.3608]
[1723742601402,0.084265,59334.0,59321.0,0.2187]
[1723742601684,0.084265,59334.0,59327.0,0.084274]
[1723742601885,0.084272,59329.0,59327.0,0.084274]
[1723742602199,0.084277,59326.0,59324.0,0.00025296]
[1723742602500,0.084277,59325.0,59324.0,0.00025296]
[1723742604991,0.089277,59325.0,59324.0,0.00025296]
[1723742605195,0.005,59325.0,59324.0,0.08453096]
[1723742605396,0.09796892,59325.0,59324.0,0.08453096]
[1723742606200,0.04625659,59325.0,59324.0,0.67448896]
[1723742606397,0.21172812,59325.0,59324.0,1.08286169]
[1723742606592,0.09696892,59325.0,59324.0,0.68286169]
[1723742606789,0.04525659,59325.0,59324.0,0.99858369]
[1723742607103,0.04525659,59325.0,59324.0,0.59021096]
[1723742607292,0.04125659,59325.0,59324.0,0.59021096]
[1723742607597,0.21072812,59325.0,59324.0,0.59021096]
[1723742607990,0.04525659,59325.0,59324.0,0.59021096]
[1723742608185,0.04525659,59325.0,59324.0,0.08453096]
[1723742608389,0.04525659,59325.0,59324.0,0.59021096]